Cogmind - Beta 16.1 @@@ ROGUE MODE // 2026.03.31 @ 17:46:13 Player: konomiyu Result: Self-destructed Performance ------------- Evolutions (2) 1000 Regions Visited (5) 1000 Robots Destroyed (49) 245 Value Destroyed (1235) 1235 Prototype IDs (40) 800 Alien Tech Used (0) 0 Bonus (443) 443 TOTAL SCORE: 4723 Bonus ------- Follower Combat Kills 143 Aligned with FarCom 300 Cogmind --------- Core Integrity 448/550 Matter 300/300 Energy 100/100 System Corruption 20% Temperature Hot (228) Movement Core (350) Ox6 Location -8/Materials Parts ------- > --- POWER (1) -------- (None) > --- PROPULSION (3) --- (None) > --- UTILITY (5) ------ Improved Heat Sink Large Storage Unit > --- WEAPON (2) ------- (None) > --- INVENTORY (15) --- Light Treads Light Treads Light Treads Aluminum Leg Wheel Improved VTOL Module Terrain Scanner Small Laser Heavy Ion Cannon Heavy Ion Cannon Heavy Ion Cannon Grenade Launcher Datajack Mining Laser Peak State ------------ > --- POWER ------------ Ion Engine > --- PROPULSION ------- Light Treads Light Treads Light Treads > --- UTILITY ---------- Improved Heat Sink Large Storage Unit Improved Terrain Scanner Light Armor Plating Hacking Suite > --- WEAPON ----------- Heavy Ion Cannon Heavy Ion Cannon > --- INVENTORY -------- Light Treads Light Treads Light Treads Aluminum Leg Wheel Improved VTOL Module Sensor Array Terrain Scanner Small Laser Small Laser Small Laser Grenade Launcher Datajack Mining Laser Makeshift Sword [Rating: 25] Favorites ----------- Power Light Nuclear Core Engine Ion Engine Power Core Light Nuclear Core Propulsion Light Treads Treads Light Treads Wheel Wheel Flight Unit Improved VTOL Module Utility Large Storage Unit Device Seismic Detector Storage Large Storage Unit Hackware Hacking Suite Protection Light Armor Plating Weapon Small Laser Energy Gun Small Laser Energy Cannon Heavy Ion Cannon Ballistic Gun Assault Rifle Launcher Grenade Launcher Special Weapon Mining Laser Slashing Weapon Makeshift Sword Special Melee Weapon Datajack Build | -11 -10 -10 -10 -9 -8 ------- Run | Yrd Mat Min Exi Min Mat Slots Evolved 4 | . . . . . 4 Power . | . . . . . . Propulsion 1 | . . . . . 1 Utility 3 | . . . . . 3 Weapon . | . . . . . . Parts Attached 35 | 8 8 1 1 1 16 Power 4 | 1 1 1 . . 1 Engine 3 | 1 1 . . . 1 Core 1 | . . 1 . . . Reactor . | . . . . . . Propulsion 9 | 2 4 . . . 3 Treads 7 | 2 3 . . . 2 Leg . | . . . . . . Wheel 1 | . 1 . . . . Hover . | . . . . . . Flight 1 | . . . . . 1 Utility 9 | 2 1 . . . 6 Device 4 | 1 . . . . 3 Storage 2 | 1 1 . . . . Processor . | . . . . . . Hackware 1 | . . . . . 1 Protection 2 | . . . . . 2 Artifact . | . . . . . . Weapon 13 | 3 2 . 1 1 6 Energy Gun 4 | 2 . . . 1 1 Energy Cannon 4 | . . . . . 4 Ballistic Gun 1 | 1 . . . . . Ballistic Cannon . | . . . . . . Launcher 1 | . 1 . . . . Special Weapon 1 | . 1 . . . . Impact Weapon . | . . . . . . Slashing Weapon 1 | . . . . . 1 Piercing Weapon . | . . . . . . Special Melee Weapon 1 | . . . 1 . . Unidentified Prototypes 1 | . . . . . 1 Parts Lost 14 | . 1 . . . 13 Power 4 | . 1 . . . 3 Propulsion 4 | . . . . . 4 Utility 4 | . . . . . 4 Weapon 2 | . . . . . 2 Highest Loss Streak 8 | . 1 . . . 8 To Critical Strikes . | . . . . . . Average Backups 12 | 3 8 13 14 14 14 Power . | . . . 1 1 . Propulsion 5 | 1 4 6 6 6 5 Utility 1 | . . 2 2 2 1 Weapon 4 | . 2 3 4 4 5 Tool/Special . | . . . . . . Unused Backups 5 | . . . . . 5 Power . | . . . . . . Propulsion 2 | . . . . . 2 Utility 1 | . . . . . 1 Weapon 2 | . . . . . 2 Tool/Special . | . . . . . . Average Slot Usage (%) 96 | . 97 100 100 100 90 Engine 5 | . 13 . . . 4 Core 6 | . . 13 14 14 3 Treads 26 | . 24 28 28 28 25 Device 14 | . 14 14 14 14 16 Storage 12 | . 14 14 14 14 9 Hackware 2 | . . . . . 8 Protection 1 | . . . . . 4 Energy Gun 17 | . 26 27 15 24 6 Energy Cannon 2 | . . . . . 8 Special Melee Weapon 2 | . . . 12 4 . Peak Build Rating 25 | 7 8 10 10 11 25 Average Rating 12 | 6 7 9 10 10 19 On Entrance 7 | . 7 8 10 10 11 Avg Prop Armor Cover (%) . | . . . . . . Naked Turns . | . . . . . . Heaviest Build 46 | 11 28 28 28 28 46 Greatest Support 60 | 40 40 40 40 40 60 Greatest Overweight (x) 10 | . 2 . . . 10 Average Overweight (x) . | . . . . . . Largest Inventory Capacity 15 | 8 15 15 15 15 15 Average Capacity 14 | 7 13 15 15 15 15 Most Carried 15 | 5 12 14 14 15 15 Average Carried 12 | 3 9 13 14 14 14 Final Capacity 15 | 8 15 15 15 15 15 Final Carried 15 | 5 12 14 14 15 14 Class Distribution -------------------- 68% | Mutant 21% | Scavenger-Skirmisher 5% | Scavenger-Mutant 3% | Skirmisher Dominant Class ---------------- Mutant | -10/Materials Mutant | -10/Mines Mutant | -10/Exiles Scavenger-Mutant | -9/Mines Scavenger-Skirmisher | -8/Materials Resources | -11 -10 -10 -10 -9 -8 ----------- Run | Yrd Mat Min Exi Min Mat Matter Collected 950 | 280 212 79 . 79 300 Remotely . | . . . . . . Salvage Created 1554 | 133 606 61 . . 754 Parts 89 | 13 34 4 . . 38 Haulers Intercepted 3 | . 2 . . . 1 Recyclers Shooed 4 | . 1 . . . 3 Parts Field Recycled . | . . . . . . Retrieved Matter . | . . . . . . Parts Self-Destructed . | . . . . . . Prevented . | . . . . . . Parts Restored . | . . . . . . Kills | -11 -10 -10 -10 -9 -8 ------- Run | Yrd Mat Min Exi Min Mat Combat Hostiles Destroyed 33 | . 15 2 . . 16 Guns 14 | . 10 1 . . 3 Cannons 5 | . . . . . 5 AOE 14 | . 5 1 . . 8 Classes Destroyed 12 | 2 7 . . . 3 Worker 3 | . 1 . . . 2 Builder 2 | . 2 . . . . Tunneler 3 | 3 . . . . . Hauler 3 | . 2 . . . 1 Recycler 2 | 1 . . . . 1 Operator 1 | . 1 . . . . Watcher 2 | . 1 . . . 1 Swarmer 9 | . 5 . . . 4 Grunt 20 | . 10 2 . . 8 Brawler 1 | . . . . . 1 Duelist 1 | . . . . . 1 Sentry 2 | . . . . . 2 Best Kill Streak 7 | 2 6 2 . . 7 Combat Bots Only 7 | . 5 2 . . 7 Max Kills in Single Turn 3 | 1 2 1 . . 3 Gunslinging . | . . . . . . Exploded 3 | . 2 1 . . 3 Melee . | . . . . . . Uniques/NPCs Destroyed . | . . . . . . Combat | -11 -10 -10 -10 -9 -8 -------- Run | Yrd Mat Min Exi Min Mat Hostile Shots Fired 126 | . 64 3 . . 59 Missed 37 | . 17 2 . . 18 Hits 89 | . 47 1 . . 41 Projectile 89 | . 47 1 . . 41 Critical Strikes 7 | . 1 . . . 6 Damage Taken 2244 | . 545 11 . . 1688 Core 213 | . 100 11 . . 102 Absorbed by Shields . | . . . . . . Core Remaining (%) 77 | 100 . . . 55 . Volleys Fired 129 | 7 72 2 . . 48 Largest 2 | 2 2 2 . . 2 Hottest 140 | 80 140 70 . . 133 Shots Fired 232 | 14 136 4 . . 78 Gun 166 | 14 120 2 . . 30 Cannon 37 | . . . . . 37 Launcher 17 | . 10 2 . . 5 Special 12 | . 6 . . . 6 Kinetic . | . . . . . . Thermal 212 | 14 126 2 . . 70 Explosive 17 | . 10 2 . . 5 Electromagnetic 3 | . . . . . 3 Robot Hit Streak 11 | 2 9 5 . . 11 Robot Miss Streak 5 | 1 5 . . . 3 Penetration Max . | . . . . . . Secondary Targets 2 | . 2 . . . . Max Gunslinging Chain 1 | . 1 . . . . Shots Hit Robots 149 | 7 85 3 4 . 50 Core Hits 83 | 5 39 5 . . 34 Critical Kills . | . . . . . . Critical Parts Destroyed . | . . . . . . Critical Strikes . | . . . . . . Melee Attacks 10 | . . . 4 . 6 Impact . | . . . . . . Slashing 6 | . . . . . 6 Piercing . | . . . . . . Sneak Attacks 4 | . . . 4 . . Combat Hostiles . | . . . . . . Follow-up Attacks . | . . . . . . Damage Inflicted 3074 | 78 1465 92 . . 1439 Guns 1162 | 78 859 12 . . 213 Cannons 670 | . . . . . 670 Explosions 1214 | . 579 79 . . 556 Melee . | . . . . . . Ramming 4 | . 3 1 . . . Kinetic . | . . . . . . Thermal 1888 | 78 883 12 . . 915 Explosive 1071 | . 544 79 . . 448 Electromagnetic 111 | . 35 . . . 76 Impact . | . . . . . . Slashing . | . . . . . . Piercing . | . . . . . . Highest Corruption 20 | . . . . . 20 Average Corruption 15 | . . . . . 15 Corruption Purged . | . . . . . . Corruption Blocked . | . . . . . . Effects 4 | . . . . . 4 Message Errors 1 | . . . . . 1 Matter Fused 1 | . . . . . 1 Heat Flow Errors 2 | . . . . . 2 Overload Shots . | . . . . . . Overflow Damage 19 | . 6 . . . 13 Projectiles 18 | . 5 . . . 13 Explosions 1 | . 1 . . . . Melee . | . . . . . . Knockbacks . | . . . . . . Impact . | . . . . . . Kinetic . | . . . . . . Secondary . | . . . . . . Self-Inflicted Damage 55 | . 20 . . . 35 Shots 2 | . 1 . . . 1 Rammed 3 | . 2 1 . . . Targets Rammed 3 | . 2 1 . . . Kicked . | . . . . . . Crushed . | . . . . . . Highest Temperature 545 | 72 186 24 . . 545 Average Temperature 76 | 28 45 14 . . 151 Received Heat Transfer 465 | . 216 6 . . 243 Effects 11 | . . . . . 11 Shutdowns 3 | . . . . . 3 Energy Bleed 1 | . . . . . 1 Interference 3 | . . . . . 3 Matter Decay 1 | . . . . . 1 Short Circuit 1 | . . . . . 1 Damage (minor) 2 | . . . . . 2 Siege Activations . | . . . . . . Martial Activations . | . . . . . . Shielding Activations . | . . . . . . Robots Disrupted . | . . . . . . Combat Hostiles . | . . . . . . Robots Corrupted . | . . . . . . Combat Hostiles . | . . . . . . Parts Fried . | . . . . . . Impact Corruptions . | . . . . . . Robots Melted . | . . . . . . Combat Hostiles . | . . . . . . Parts Melted 6 | . 4 . . . 2 Heat Transferred 3774 | 175 2025 25 . . 1549 Parts Sabotaged . | . . . . . . Parts Stolen . | . . . . . . Parts Stripped . | . . . . . . Power Chain Reactions 1 | . . . . . 1 Alert | -11 -10 -10 -10 -9 -8 ------- Run | Yrd Mat Min Exi Min Mat Maximum Alert Level 1 | . 1 . . . . Low Security (%) 94 | 100 84 100 . 100 100 Level 1 5 | . 15 . . . . Level 2 . | . . . . . . Level 3 . | . . . . . . Level 4 . | . . . . . . Level 5 . | . . . . . . High Security . | . . . . . . Max Security . | . . . . . . Peak Influence 289 | 10 289 159 . 58 146 Initial 102 | . . 102 . . 14 Average 53 | . 65 37 . 44 57 Influence Increases 1370 | 20 613 57 . 58 622 Destroy 0b10 Robot/C 800 | . 300 40 . 40 420 Destroy 0b10 Robot/NC 80 | 20 35 . . . 25 Destroy Leader 160 | . 66 10 . 10 74 Allied During Kill 25 | . . . . 8 17 Successful Hack 28 | . 11 . . . 17 Disable Machine 60 | . 60 . . . . Destroy Structure 112 | . 66 7 . . 39 Partial Spotted 15 | . 15 . . . . Lose Combat Pursuer 90 | . 60 . . . 30 Influence Decreases 1344 | 20 350 320 . 20 634 Entered New Map 185 | . . 161 . . 24 Time Decay 971 | 20 340 159 . 20 432 Lost Part 136 | . 10 . . . 126 Lost Ally 37 | . . . . . 37 Purge Threat 15 | . . . . . 15 Squads Dispatched 7 | . 3 . . . 4 Investigation 4 | . 2 . . . 2 Extermination . | . . . . . . Reinforcement 3 | . 1 . . . 2 Assault . | . . . . . . Garrison . | . . . . . . Intercept . | . . . . . . Searches Triggered . | . . . . . . Construction Impeded 1 | . . . . . 1 Haulers Reinforced . | . . . . . . Active Scanning Responses . | . . . . . . Cargo Convoy Interrupts . | . . . . . . Stealth | -11 -10 -10 -10 -9 -8 --------- Run | Yrd Mat Min Exi Min Mat Distress Signals 4 | . 1 . . . 3 Communications Jammed . | . . . . . . Distress Signals . | . . . . . . Times Spotted 67 | . 32 2 . 2 31 Peak Tracking Total 9 | . 5 2 . 2 9 Tactical Retreats 4 | . 2 . . . 2 Traps | -11 -10 -10 -10 -9 -8 ------- Run | Yrd Mat Min Exi Min Mat Traps Triggered 6 | . 4 . . . 2 Indirectly . | . . . . . . Trap Hack Attempts . | . . . . . . Triggered . | . . . . . . Disarmed . | . . . . . . Reprogrammed . | . . . . . . Reused . | . . . . . . Traps Extracted . | . . . . . . Installed . | . . . . . . Triggered . | . . . . . . Machines | -11 -10 -10 -10 -9 -8 ---------- Run | Yrd Mat Min Exi Min Mat Machines Disabled 4 | . 4 . . . . Max in Single Turn 2 | . 2 . . . . Machines Repaired . | . . . . . . Machines Dismantled . | . . . . . . Machines Sabotaged . | . . . . . . Overloaded Fab Kills . | . . . . . . Hacking | -11 -10 -10 -10 -9 -8 --------- Run | Yrd Mat Min Exi Min Mat Machines Accessed 15 | . 6 . 2 1 6 Terminals 10 | . 5 . . 1 4 Fabricators . | . . . . . . Repair Stations . | . . . . . . Recycling Units 1 | . 1 . . . . Scanalyzers 2 | . . . . . 2 Garrison Access . | . . . . . . Total Hacks 41 | . 17 . 5 2 17 Successful 20 | . 5 . 5 . 10 Failed 21 | . 12 . . 2 7 Catastrophic 5 | . 1 . . 1 3 Database Lockouts . | . . . . . . Manual 15 | . 8 . 1 2 4 Terminals 29 | . 14 . . 2 13 Fabricators . | . . . . . . Repair Stations . | . . . . . . Recycling Units 3 | . 3 . . . . Scanalyzers 4 | . . . . . 4 Garrison Access . | . . . . . . Terminal Hacks 14 | . 3 . 5 . 6 Record 4 | . . . 4 . . Robot Analysis 2 | . 1 . . . 1 Prototype ID Bank 1 | . 1 . . . . Terminal Index 1 | . . . . . 1 Scanalyzer Index 1 | . . . . . 1 Unreport Threat 1 | . . . . . 1 Recall Reinforcements 1 | . . . . . 1 Hauler Manifests 1 | . . . . . 1 Registered Components 1 | . 1 . . . . Proto ID Catalog 1 | . . . 1 . . Fabricator Hacks . | . . . . . . Repair Station Hacks . | . . . . . . Recycling Unit Hacks 1 | . 1 . . . . Retrieve Components 1 | . 1 . . . . Scanalyzer 4 | . . . . . 4 Insert Component 1 | . . . . . 1 Analyze 2 | . . . . . 2 Retrieve Study 1 | . . . . . 1 Garrison Access Hacks . | . . . . . . Unauthorized Hacks 1 | . 1 . . . . Terminals 1 | . 1 . . . . Operators 1 | . 1 . . . . Fabricators . | . . . . . . Repair Stations . | . . . . . . Recycling Units . | . . . . . . Scanalyzers . | . . . . . . Garrison Access . | . . . . . . Data Cores Recovered . | . . . . . . Used . | . . . . . . Hacking Detections 12 | . 6 . . 1 5 Full Trace Events 3 | . 2 . . 1 . Feedback Events . | . . . . . . Feedback Blocked . | . . . . . . Robot Schematics Acquired . | . . . . . . Robots Built . | . . . . . . Authchips . | . . . . . . Time . | . . . . . . Total Robot Build Rating . | . . . . . . Part Schematics Acquired 1 | . . . . . 1 Parts Built . | . . . . . . Authchips . | . . . . . . Time . | . . . . . . Total Part Build Rating . | . . . . . . Part Studies Acquired . | . . . . . . Parts Repaired . | . . . . . . Time . | . . . . . . Parts Recycled . | . . . . . . Recycled Matter . | . . . . . . Retrieved Matter . | . . . . . . Retrieved Components 9 | . 9 . . . . Parts Scanalyzed 1 | . . . . . 1 Part Schematics Acquired 1 | . . . . . 1 Parts Damaged . | . . . . . . Bothacking | -11 -10 -10 -10 -9 -8 ------------ Run | Yrd Mat Min Exi Min Mat Used RIF Installer . | . . . . . . Robots Hacked 4 | . . . 4 . . Non-combat 3 | . . . 3 . . Combat 1 | . . . 1 . . Robot Hacks Applied 4 | . . . 4 . . parse_system 4 | . . . 4 . . Relay Couplers Released . | . . . . . . Fabnet Peak Effective % . | . . . . . . Robots Rewired . | . . . . . . Allies Hacked . | . . . . . . Hacks Repelled . | . . . . . . Allies | -11 -10 -10 -10 -9 -8 -------- Run | Yrd Mat Min Exi Min Mat Total Allies 3 | . . 3 . . . Largest Group 3 | . . 3 3 3 3 Highest-Rated Group 40 | . . 40 40 40 40 Highest-Rated Ally 16 | . . 16 16 16 16 Total Orders 1 | . . . . . 1 ROAM 1 | . . . . . 1 Ally Attacks 33 | . . . . 6 27 Total Damage 357 | . . . . 81 276 Kills 7 | . . . . 2 5 Allies Corrupted . | . . . . . . Allies Melted . | . . . . . . Intel | -11 -10 -10 -10 -9 -8 ------- Run | Yrd Mat Min Exi Min Mat Active Infowar (turns) 4739 | 124 1411 703 968 58 1475 Terrain 1329 | . . . . . 1329 Seismic 3792 | 124 1411 703 968 58 528 Robot Analysis Total 2 | . 1 . . . 1 Derelict Logs Recovered 1 | . . 1 . . . Drone Launches . | . . . . . . Drone Recoveries . | . . . . . . Exploration | -11 -10 -10 -10 -9 -8 ------------- Run | Yrd Mat Min Exi Min Mat Turns Passed 4874 | 204 1411 703 968 58 1530 Spaces Moved 2620 | 106 742 432 601 35 704 Core 3 | 2 . . . . 1 Treads 2489 | 104 614 432 601 35 703 Legs . | . . . . . . Wheels 128 | . 128 . . . . Hover . | . . . . . . Flight . | . . . . . . Fastest Speed 50 | 50 110 160 160 160 160 Average Speed 157 | 157 151 160 160 160 160 Slowest Speed 550 | 160 240 160 160 160 550 Overloaded Moves . | . . . . . . Propulsion Burnouts . | . . . . . . Robots Hopped . | . . . . . . Potential Cave-ins . | . . . . . . Cave-ins Triggered 5 | . . . . . 5 Exploration Rate (%) 55 | 5 89 93 88 8 49 Regions Visited 5 Branch Regions 3 Pre-discovered Areas 1 | . . . 1 . . Known Exits Taken . | . . . . . . Unknown Exits Taken 5 | 1 1 1 1 1 . Scrap Searched 1 | . . 1 . . . Spaces Dug 16 | . 4 . . . 12 Terrain Destroyed 129 | . 76 8 . . 45 Melee 6 | . . . . . 6 Projectile 14 | . 5 . . . 9 AOE 109 | . 71 8 . . 30 Terrain Rammed . | . . . . . . Walls Destroyed . | . . . . . . Machines Disabled . | . . . . . . Actions | -11 -10 -10 -10 -9 -8 --------- Run | Yrd Mat Min Exi Min Mat Total 3083 | 125 875 438 605 36 1004 Wait 237 | . 29 . . . 208 Move 2615 | 105 741 431 600 34 704 Hop . | . . . . . . Pick Up 19 | 5 7 1 . . 6 Fast Attach 16 | 7 6 . . . 3 Attach 10 | . 4 . . . 6 Detach 4 | . 3 . . . 1 Swap 31 | 1 10 3 1 2 14 Drop 9 | . 1 . . . 8 Fire 129 | 7 72 2 . . 48 Melee 10 | . . . 4 . 6 Ram 2 | . 2 . . . . Kick . | . . . . . . Crush 1 | . . 1 . . . Escape Stasis . | . . . . . . Rewire . | . . . . . . Trap . | . . . . . . Miscellaneous . | . . . . . . Route ------- -11/Scrapyard -10/Materials (discovered 6 exits: [*Mat x3] / [*Min x2] / [*Sub]) -10/Mines (discovered 3 exits: [*Mat x2] / *Exi) -10/Exiles (discovered 2 exits: *Min x2) -9/Mines -8/Materials (discovered 1 exit: [*Fac]) History --------- Turn | Location | Event 19 | -11/Scrapyard | Discovered new exit (range 16) 205 | -11/Scrapyard | Entered Materials 301 | -10/Materials | Build established: Mutant 519 | -10/Materials | Discovered new exit (range 16) 825 | -10/Materials | Discovered new exit (range 16) 1045 | -10/Materials | Discovered new exit (range 6) 1147 | -10/Materials | Discovered new exit (range 5) 1264 | -10/Materials | Discovered new exit (range 11) 1417 | -10/Materials | Discovered new exit (range 7) 1616 | -10/Materials | Entered Mines 1726 | -10/Mines | Discovered new exit (range 7) 2110 | -10/Mines | A weapon hastily lodged in a ceiling crevice suddenly fell to the ground 2151 | -10/Mines | Discovered new exit (range 13) 2153 | -10/Mines | Learned Materials terminal intel 2180 | -10/Mines | Assisted by bots powering up and referring to "LRC-V3" 2311 | -10/Mines | Deemed a non-threat by the Exiles lab entrance 2313 | -10/Mines | Discovered new exit (range 5) 2319 | -10/Mines | Entered Exiles 2319 | -10/Exiles | Accompanied by 3 allies 2358 | -10/Exiles | Met 8R-AWN 2382 | -10/Exiles | Met EX-HEX 2481 | -10/Exiles | Met EX-DEC 2495 | -10/Exiles | Learned location of Zion (-6) 2686 | -10/Exiles | Visited The Gauntlet 2873 | -10/Exiles | Met EX-BIN 2901 | -10/Exiles | Aligned with FarCom system 2903 | -10/Exiles | Given EX-Vault access code 2941 | -10/Exiles | Opened EX-Vault 2999 | -10/Exiles | Warned to stay clear of 0b10 Research branches 3098 | -10/Exiles | Discovered new exit (range 14) 3258 | -10/Exiles | Discovered new exit (range 15) 3287 | -10/Exiles | Entered Mines 3287 | -9/Mines | Accompanied by 3 allies 3329 | -9/Mines | Discovered new exit (range 8) 3345 | -9/Mines | Entered Materials 3345 | -8/Materials | Accompanied by 3 allies 3345 | -8/Materials | Evolved 4 slots: Propulsion x1, Utility x3 3346 | -8/Materials | Loaded intel: 12 terminal locations 3789 | -8/Materials | Crushed by falling debris 3799 | -8/Materials | Build established: Scavenger-Skirmisher 3810 | -8/Materials | Discovered new exit (range 6) 3898 | -8/Materials | Destroyed 7 combat bots 4563 | -8/Materials | Lost 3 parts (1p1n1u) 4816 | -8/Materials | Crushed by falling debris 4820 | -8/Materials | Crushed by falling debris 4831 | -8/Materials | Crushed by falling debris 4831 | -8/Materials | System corruption reached 10% 4853 | -8/Materials | Crushed by falling debris 4875 | -8/Materials | Self-destructed Last Messages --------------- 04820_ Hacking Suite destroyed. 04820_ System corrupted by crushing effect (+2). 04820_ Imp. Terrain Scanner destroyed. 04820_ System corrupted by crushing effect (+1). 04826_ DUUOG9D AHZEN LC3AR&NJP>CC2NJXXQF 04831_ The unstable cave ceiling collapses. 04831_ Crushed by falling debris. 04831_ Mak. Sword destroyed. 04831_ System corrupted by crushing effect (+5). 04831_ Lgt. Treads destroyed. 04831_ System corrupted by crushing effect (+5). 04841_ System corrupted: Matter fused (-6). 04853_ The unstable cave ceiling collapses. 04853_ Crushed by falling debris. 04853_ Hvy. Ion Cannon destroyed. 04853_ System corrupted by crushing effect (+1). 04853_ Lgt. Treads destroyed. 04853_ System corrupted by crushing effect (+2). 04860_ System corrupted: Heat flow error (+212). 04875_ System corrupted: Heat flow error (+228). Map ----- +----------------------------------------------------+ | ??#??????????????????????????????????????????????? | | ?????????????????????????????????????????????????? | | ?????????????????????????????????????????????????? | | ??#???? ?????????????????????????????????????????? | | ?????????????????????????????????????????????????? | | ?????????????????????????????????????????????????? | | ?????????????????????????????????????????????????? | | ????????????????????????"T"??????????????????????? | | ????????????????????????"""??????????????????????? | | ?????????????????????????????????????????????????? | | ##???????????????????????????????????????????????? | | ?????????????????????????????????????????????????? | | ?????????????????????????????????????????????????? | | #?????#??????????? ??????????????????????????????? | | ?????????????????????????????????????????????????? | | ?????????????????????????????????????????????????? | | ?#?#?????????????????????????????????????????????? | | ?????????????????????????????????????????????????? | | ????????????????????????????#????????????????????? | | ?????????????#????????????? ?????????????????????? | | ????????????????????????????????????#????????????? | | ?????????? ?#????????????????????????????????????? | | ?????????????????????????????????????????????????? | | ?????????????????? ??????????????????????????????? | | ?????????????????? ?#??####????#?????????????????? | | ???????????????#??????###@#??????????????????????? | | ?????????? ????# ????######??????????????????????? | | ???????????????# ??##!!!!##??????? ?????????????? | | ? ???? ??? ????# ?#! g g!#??????????????Y??????? | | ? ??? ???? ???## ## #??????Y??????????????? | | ?? ??? ?????## # g ########?#????????????? | | ???????????#??# #??????????????? | | ?? ???????????# " w #??????????????? | | ##???#????????# " ##?????????????? | | ?????????????## ###+## """ #???????????? | | ###?????#??#??## #?# # "" ??????????????? | | //#???????#?##?# #?# # """ ?????????????? | | //############## ??# # "" ? ??????????????? | | #?# ## ??# # """? ????????????? | | ###?# """ """ ## ### # """ #???????????? | | ##### """ """ ## #?# | # """ #???????????? | | + """ """ ## #?# | #? " ???????????? | | ##### ## ####### ?? ??????????? | | #???# ## #???# #? ?????????? | | ??#?# ## ####### ? #???????????? | | ????# ## # # #????????????? | | ########+####### #/ ! #? #????????????? | | #?### # =% # #???#????????? | | ^ #?# # # "" # #????????????? | | ### # S"" / #????????????? | +----------------------------------------------------+ Best States ------------- Heat Dissipation 45 Energy Generation 14 Energy Capacity 250 Matter Stores 300 Matter Capacity 300 Sight Range 16 Terrain Scan Range 16 Terrain Scan Density 10 Armor Coverage 150 Evasion (%) 40 Recoil Reduction 3 Offensive Hacking 10 Item Schematics ----------------- Imp. VTOL Module | -8/Materials | Scanalyzed Robot Schematics ------------------ None Fabricated ------------ Nothing Repaired ---------- Nothing Studied --------- None Alien Tech Used ----------------- None Achievements -------------- None Challenges ------------ None Game ------ Seed ChainBombMatter Manual? 0 Play Time 00:37:00 Cumulative 33.1 hours Start 2026.03.30 @ 20:03:38 End 2026.03.31 @ 17:46:13 Sessions 3 Manual Loads 0 Difficulty Rogue Special Mode None Game No. 38 Rogue 38 Adventurer 0 Explorer 0 Win Type - Total 0 Types 0/0/0/0/0/0/0/0/0/0 Lore% 29 Gallery% 23 Achievement% 18 Wizard Run 0 Options --------- Layout 1 ASCII 0 Keyboard 1 Movement Vi Keybinds 0 Fullscreen 2 Font 24/Smallcaps Map View 50x35 Zoom Use 0% Tactical HUD 1 Map Filters NONE Filters NONE Steam 1 RUN: a8b3bb1c-150d-426e-a3f2-9fc83a601bb7